bitfinex-derivatives/quotes_SOLF0:USTF0_20240902
["timestamp","ask_amount","ask_price","bid_price","bid_amount"]
[1725286706540,0.05898476,130.59,130.56,0.0573816]
[1725286707344,3.88818476,130.59,130.56,0.0573816]
[1725286708140,0.05898476,130.59,130.56,0.0573816]
[1725286708536,0.05898476,130.59,130.56,3.8869816]
[1725286709146,0.05898476,130.59,130.56,0.0573816]
[1725286709345,0.05898476,130.59,130.56,44.1573816]
[1725286709948,0.05898476,130.59,130.58,3.8292]
[1725286710360,3.8275,130.64,130.6,3.8285]
[1725286710568,46.8102,130.66,130.54,44.1]
[1725286710957,46.8102,130.66,130.56,3.8296]
[1725286711360,3.8283,130.61,130.6,0.05646102]
[1725286712254,0.05486422,130.62,130.6,0.05646102]
[1725286712458,0.05486422,130.62,130.6,3.88506102]
[1725286712764,0.05486422,130.62,130.6,0.05646102]
[1725286713452,44.1,130.61,130.51,1.4332]
[1725286714459,0.04845825,130.57,130.55,0.05767159]
[1725286716259,3.87795825,130.57,130.55,0.05767159]
[1725286716567,0.04845825,130.57,130.55,0.05767159]
[1725286716766,0.04845825,130.57,130.5,3.8314]
[1725286717358,3.8304,130.54,130.5,3.8314]
[1725286717862,1.3767,130.58,130.49,3.8318]
[1725286718060,0.05306042,130.53,130.51,0.05420942]
[1725286718360,3.8286,130.61,130.57,3.8295]
[1725286719065,3.8278,130.63,130.53,1.4705]
[1725286719259,0.05897096,130.59,130.57,0.05283384]
[1725286720168,2.8412,130.66,130.56,44.1]
[1725286720361,3.82915996,130.67,130.56,44.1]
[1725286720560,90.11405341,130.68,130.58,44.1]
[1725286720778,3.8271,130.66,130.62,3.8278]
[1725286721270,0.05153159,130.65,130.63,0.05675489]
[1725286722070,3.8275,130.64,130.63,0.05675489]
[1725286722568,3.8282,130.62,130.58,3.8291]
[1725286723871,0.04980417,130.61,130.59,0.05076559]
[1725286724673,3.8286,130.6,130.59,0.05076559]
[1725286725367,3.87830417,130.61,130.59,0.05076559]
[1725286725568,0.04980417,130.61,130.59,0.05076559]
[1725286726767,3.76923665,130.67,130.59,48.00796597]
[1725286726971,90.11405341,130.68,130.59,44.1]
[1725286727372,90.11405341,130.68,130.6,3.89127729]
[1725286727568,90.11405341,130.68,130.6,5.23657729]
[1725286727769,3.8266,130.67,130.64,3.8273]
[1725286727975,3.82445261,130.67,130.6,6.61387729]
[1725286728176,0.0505853,130.65,130.64,3.8272]
[1725286728471,0.05273594,130.66,130.63,0.05681538]
[1725286728674,0.05273594,130.66,130.63,0.05075005]
[1725286728974,3.8273,130.65,130.63,0.05075005]
[1725286729472,3.87973594,130.66,130.63,3.87835005]
[1725286731066,0.05273594,130.66,130.64,3.8274]
[1725286732167,0.05273594,130.66,130.65,3.8272]
[1725286732876,10.39034813,130.73,130.63,44.1]
[1725286733078,3.827581,130.74,130.65,44.1]
[1725286733378,3.8254,130.72,130.68,3.8261]
[1725286733676,13.23444813,130.75,130.65,44.1]
[1725286733874,3.8255,130.71,130.69,0.05564392]
[1725286734077,0.05152036,130.71,130.69,0.05564392]
[1725286734479,0.05152036,130.71,130.7,3.8257]
[1725286735379,0.05152036,130.71,130.69,0.05564392]
[1725286735774,0.05152036,130.71,130.69,3.88144392]
[1725286736076,6.6552443,130.75,130.69,0.05564392]
[1725286736077,3.8111443,130.75,130.69,0.05564392]
[1725286736278,3.8242,130.76,130.72,3.825]
[1725286736487,13.21344813,130.79,130.7,44.1]
[1725286736488,3.86649219,130.78,130.7,44.1]
[1725286736669,3.8242,130.76,130.69,1.4703]
[1725286736873,3.76051373,130.78,130.69,1.4703]
[1725286737081,0.0584088,130.75,130.72,0.05524023]
[1725286737273,3.91351081,130.75,130.72,0.05524023]
[1725286737469,3.91351081,130.75,130.63,1.4703]
[1725286737470,48.01351081,130.75,130.65,44.1]
[1725286737671,48.01351081,130.75,130.63,45.5703]
[1725286737884,3.8256,130.71,130.67,3.8263]
[1725286738478,0.05040152,130.7,130.68,0.04954704]
[1725286739376,3.87630152,130.7,130.68,0.04954704]
[1725286739571,0.05040152,130.7,130.68,0.04954704]
[1725286740081,0.05040152,130.7,130.69,3.826]
[1725286741489,0.05040152,130.7,130.68,3.87564704]
[1725286742283,0.05040152,130.7,130.68,0.04954704]
[1725286743278,3.826,130.69,130.68,0.04954704]
[1725286743681,0.05040152,130.7,130.63,36.71]
[1725286744282,3.8264,130.68,130.64,3.8272]
[1725286744580,0.05664085,130.67,130.65,0.05545728]
[1725286744781,3.8259,130.7,130.66,3.8267]
[1725286744977,2.8183,130.74,130.65,36.76692569]
[1725286745178,0.05619458,130.69,130.68,0.04979774]
[1725286745375,0.04859769,130.7,130.68,0.04979774]
[1725286746087,0.04859769,130.7,130.69,36.71]
[1725286746383,3.8239,130.76,130.73,3.8246]
[1725286746881,3.8247,130.74,130.7,3.8256]
[1725286747074,3.84603611,130.77,130.68,36.71]
[1725286747280,0.05097117,130.74,130.71,0.05711766]
[1725286747475,0.05097117,130.74,130.71,0.05730264]
[1725286748986,4.35797117,130.74,130.71,0.05730264]
[1725286749576,3.8251,130.72,130.71,0.05730264]
[1725286749983,4.35797117,130.74,130.71,0.05730264]
[1725286750183,3.825,130.73,130.71,0.05730264]
[1725286750382,4.35797117,130.74,130.71,0.05730264]
[1725286750886,44.1,130.73,130.56,7.6593]
[1725286751087,44.1,130.73,130.45,19.165]
[1725286751088,44.1,130.7,130.59,44.1]
[1725286751484,4.307,130.74,130.59,44.1]
[1725286751485,44.1,130.72,130.59,44.1]
[1725286751790,3.8269,130.66,130.64,0.05431856]
[1725286751982,0.04864619,130.67,130.64,0.04999755]
[1725286752586,3.8274,130.65,130.64,0.04999755]
[1725286753987,5.26810459,130.66,130.64,0.04999755]
[1725286754385,5.26810459,130.66,130.58,44.1]
[1725286754587,5.26810459,130.66,130.56,45.5803]
[1725286754588,3.8281,130.62,130.56,45.5803]
[1725286754986,3.8281,130.62,130.58,3.829]
[1725286755385,0.05843019,130.61,130.59,0.05580276]
[1725286755583,6.63330459,130.66,130.59,0.05580276]
[1725286755789,0.05594245,130.64,130.59,0.05580276]
[1725286755987,0.05594245,130.64,130.6,44.1]
[1725286757294,0.05594245,130.64,130.63,3.8277]
[1725286757690,0.05594245,130.64,130.62,3.88259972]
[1725286758294,0.05594245,130.64,130.63,3.8277]
[1725286758695,0.05594245,130.64,130.62,0.05469972]
[1725286759194,0.05594245,130.64,130.55,1.3944]
[1725286759389,3.8283,130.62,130.58,3.8292]
[1725286759589,0.05594245,130.64,130.58,3.8292]
[1725286759590,1.4239,130.66,130.58,3.8292]
[1725286759801,1.4239,130.66,130.55,45.4944]
[1725286759990,3.8285,130.61,130.57,3.8293]
[1725286760187,0.05819279,130.6,130.58,0.05556855]
[1725286761501,0.05819279,130.6,130.59,3.8289]
[1725286761792,0.05819279,130.6,130.58,0.05556855]
[1725286762992,3.8289,130.59,130.58,0.05556855]
[1725286763995,3.81078183,130.61,130.51,44.1]
[1725286764198,1.3868,130.64,130.55,44.1]
[1725286764706,1.3868,130.64,130.59,3.8287]
[1725286764901,5.2143,130.64,130.6,0.04906839]
[1725286765207,0.05228398,130.63,130.61,0.05027848]
[1725286766695,3.828,130.62,130.61,0.05027848]
[1725286767204,0.05228398,130.63,130.61,0.05027848]
[1725286767892,3.828,130.62,130.61,0.05027848]
[1725286768301,0.05228398,130.63,130.61,0.05027848]
[1725286768899,3.88018398,130.63,130.61,0.05027848]
[1725286769105,0.05228398,130.63,130.61,0.05027848]
[1725286769602,3.828,130.62,130.61,0.05027848]
[1725286770407,3.8289,130.6,130.53,36.75]
[1725286770605,36.75,130.63,130.53,36.75]
[1725286770905,3.8288,130.6,130.53,36.75]
[1725286771408,0.04909464,130.58,130.56,3.8297]
[1725286771606,0.04909464,130.58,130.55,0.05788523]
[1725286771902,0.04909464,130.58,130.57,3.8295]
[1725286772505,3.828,130.63,130.57,3.8295]
[1725286772705,5.3370912,130.68,130.62,3.8279]
[1725286773003,5.3370912,130.68,130.53,36.75]
[1725286773004,3.8278,130.63,130.58,38.1531]
[1725286773400,36.75,130.67,130.56,36.75]
[1725286773600,36.75,130.65,130.54,36.75]
[1725286774003,36.75,130.65,130.56,3.8297]
[1725286774204,3.8288,130.6,130.59,0.05458029]
[1725286774598,3.8288,130.6,130.56,3.8297]
[1725286774599,3.8296,130.57,130.52,36.75]
[1725286774803,2.8057,130.61,130.52,36.75]
[1725286775108,3.8294,130.58,130.54,3.8301]
[1725286775614,0.05492316,130.57,130.55,0.05526414]
[1725286776712,3.8298,130.56,130.55,0.05526414]
[1725286778611,3.88462316,130.57,130.55,0.05526414]
[1725286779616,0.05492316,130.57,130.55,0.05526414]
[1725286779808,0.05492316,130.57,130.56,40.5798]
[1725286780111,3.8282,130.62,130.56,36.75]
[1725286780905,4.0582,130.66,130.59,3.8288]
[1725286780906,0.05411109,130.6,130.59,3.8288]
[1725286781213,0.05823855,130.61,130.59,3.8288]
[1725286781415,0.05734902,130.61,130.59,3.8836127]
[1725286781606,0.05734902,130.61,130.59,0.0548127]
[1725286782114,3.8286,130.6,130.59,0.0548127]
[1725286782512,0.05734902,130.61,130.59,0.0548127]
[1725286783199,3.8286,130.6,130.59,0.0548127]
[1725286784110,0.05734902,130.61,130.59,0.0548127]
[1725286784111,3.88574902,130.61,130.59,0.0548127]
[1725286784309,7.72716107,130.61,130.59,0.0548127]
[1725286784510,3.88574902,130.61,130.59,0.0548127]
[1725286784714,7.63718481,130.61,130.59,0.0548127]
[1725286785009,0.05734902,130.61,130.59,0.0548127]
[1725286785910,0.05734902,130.61,130.6,3.8286]
[1725286786110,99.83881679,130.69,130.6,3.8286]
[1725286786111,10.39034813,130.74,130.6,36.75]
[1725286786407,3.8267,130.67,130.63,3.8276]
[1725286787511,0.0556533,130.66,130.64,0.05772154]
[1725286788116,0.0556533,130.66,130.64,3.88502154]
[1725286791511,3.8825533,130.66,130.64,0.05772154]
[1725286793810,3.8272,130.65,130.64,0.05772154]
[1725286794716,0.0556533,130.66,130.64,0.05772154]
[1725286794717,3.8826533,130.66,130.64,0.05772154]
[1725286798319,3.8272,130.65,130.64,0.05772154]
[1725286798512,36.75,130.65,130.56,36.75]
[1725286798823,1.4572,130.64,130.56,36.75]
[1725286799118,3.8288,130.6,130.56,36.75]
[1725286799509,0.05353116,130.59,130.57,3.87854729]
[1725286799818,0.05194042,130.59,130.57,0.04914729]
[1725286801110,0.05194042,130.59,130.57,3.87844729]
[1725286802612,40.59409219,130.68,130.58,36.75]
[1725286802818,36.75,130.68,130.58,36.75]
[1725286803127,36.75,130.7,130.6,36.75]
[1725286803623,3.8273,130.65,130.64,0.05384074]
[1725286804022,0.05579865,130.66,130.64,0.05384074]
[1725286804517,0.05579865,130.66,130.58,36.75]
[1725286804716,3.8278,130.63,130.59,3.8286]
[1725286804921,36.75,130.68,130.58,36.75]
[1725286805218,3.8276,130.64,130.6,3.8284]
[1725286805610,0.05453529,130.63,130.61,0.0548086]
[1725286806217,3.88233529,130.63,130.61,0.0548086]
[1725286809429,0.05453529,130.63,130.61,0.0548086]
[1725286810724,0.05453529,130.63,130.61,3.8830086]
[1725286814523,0.05453529,130.63,130.62,3.828]
[1725286821233,3.75171489,130.68,130.62,29.39]
[1725286821424,3.75171489,130.68,130.64,29.39]
[1725286821621,7.57821489,130.68,130.65,3.827]
[1725286822129,3.8266,130.67,130.65,3.87903364]
[1725286822425,3.8266,130.67,130.65,0.05203364]
[1725286822634,3.80770692,130.68,130.65,0.05203364]
[1725286822833,3.8269,130.66,130.65,0.05203364]
[1725286823032,29.39,130.66,130.56,1.403]
[1725286823234,2.8352,130.65,130.56,1.403]
[1725286823425,3.8284,130.61,130.58,3.829]
[1725286823626,2.8352,130.65,130.57,29.39]
[1725286824127,0.05720156,130.62,130.6,0.05144561]
[1725286824829,0.05720156,130.62,130.6,3.87994561]
[1725286825137,0.05720156,130.62,130.6,0.05144561]
[1725286825332,3.8267,130.67,130.61,29.39]
[1725286825625,3.8267,130.67,130.62,33.2112098]
[1725286825824,3.8267,130.67,130.62,29.39]
[1725286826021,3.8267,130.67,130.63,3.8276]
[1725286826531,0.05135269,130.66,130.64,0.05124121]
[1725286826733,0.05078634,130.66,130.64,0.05322973]
[1725286827928,0.05078634,130.66,130.64,3.88052973]
[1725286828134,0.05078634,130.66,130.64,0.05322973]
[1725286828637,0.05078634,130.66,130.65,3.8272]
[1725286828822,0.05078634,130.66,130.64,0.05322973]
[1725286829330,0.05078634,130.66,130.64,3.88052973]
[1725286829833,0.05078634,130.66,130.65,3.8272]
[1725286830332,0.05078634,130.66,130.64,0.05322973]
[1725286830526,0.05078634,130.66,130.64,3.88052973]
[1725286833433,0.05078634,130.66,130.65,3.8272]
[1725286835032,1.4306,130.72,130.64,29.44322973]
[1725286835334,5.33113657,130.75,130.69,29.39]
[1725286835532,1.4445,130.75,130.69,29.39]
[1725286835832,3.8247,130.74,130.69,29.39]
[1725286836337,0.04958709,130.73,130.7,0.05839195]
[1725286836539,1.4252,130.73,130.7,0.05839195]
[1725286836839,1.47580406,130.73,130.7,0.05839195]
[1725286837039,3.8254,130.71,130.7,0.05839195]
[1725286838033,1.47580406,130.73,130.65,29.39]
[1725286838034,3.8261,130.69,130.65,29.39]
[1725286838235,3.8261,130.69,130.63,30.8346]
[1725286838736,1.4055,130.71,130.63,30.8346]
[1725286839135,0.05856576,130.68,130.66,3.88376372]
[1725286839333,0.05856576,130.68,130.66,0.05706372]
[1725286839740,0.05856576,130.68,130.67,3.8266]
[1725286840437,0.05856576,130.68,130.67,33.2166]
[1725286841941,0.05856576,130.68,130.67,3.8266]
[1725286844635,0.05856576,130.68,130.67,33.2166]
[1725286846054,0.05856576,130.68,130.66,0.05706372]
[1725286846637,3.88506576,130.68,130.66,0.05706372]
[1725286847242,3.88506576,130.68,130.66,3.88386372]
[1725286847544,0.05856576,130.68,130.66,0.05706372]
[1725286848241,0.05856576,130.68,130.67,29.39]
[1725286848437,0.05856576,130.68,130.67,33.2166]
[1725286849538,1.4851,130.74,130.71,3.8253]
[1725286849738,29.39,130.78,130.69,33.31065526]
[1725286849944,33.29980873,130.78,130.69,29.39]
[1725286850144,3.8241,130.76,130.69,29.39]
[1725286850340,3.8241,130.76,130.7,3.90100975]
[1725286850541,0.05206482,130.74,130.73,3.8248]
[1725286852953,0.05206482,130.74,130.72,3.87417855]
[1725286853849,0.05206482,130.74,130.72,0.04917855]
[1725286854050,1.41676482,130.74,130.72,0.04917855]
[1725286854640,3.8248,130.73,130.72,0.04917855]
[1725286856055,1.41676482,130.74,130.69,3.8258]
[1725286856242,1.41676482,130.74,130.62,3.92202081]
[1725286856243,29.39,130.71,130.62,3.92202081]
[1725286856450,3.85407376,130.7,130.63,29.39]
[1725286856954,3.85407376,130.7,130.65,3.8269]
[1725286857155,0.04973618,130.69,130.66,0.05126821]
[1725286857748,3.87593618,130.69,130.66,0.05126821]
[1725286857950,0.04973618,130.69,130.66,0.05126821]
[1725286858449,0.04973618,130.69,130.67,3.8264]
[1725286859052,0.04973618,130.69,130.66,0.05126821]
[1725286860445,0.04973618,130.69,130.61,29.39]
[1725286860643,29.39,130.68,130.6,3.8285]
[1725286861350,0.04886124,130.65,130.63,0.05777021]
[1725286861847,0.04886124,130.65,130.57,29.39]
[1725286862047,0.04886124,130.65,130.56,36.75]
[1725286862246,3.8286,130.6,130.56,40.5797]
[1725286862451,0.04886124,130.65,130.56,36.75]
[1725286862856,0.04886124,130.65,130.57,3.8294]
[1725286863654,0.04886124,130.65,130.56,40.5798]
[1725286863860,0.04886124,130.65,130.56,36.75]
[1725286864159,3.8285,130.61,130.57,3.8294]
[1725286864558,1.4447,130.66,130.59,0.05877031]
[1725286864760,1.4447,130.66,130.61,36.75]
[1725286865059,0.05390786,130.64,130.63,36.75]
[1725286865360,3.89135594,130.69,130.63,36.75]
[1725286865560,3.87929205,130.67,130.65,0.05451258]
[1725286865954,0.05269205,130.67,130.65,0.05451258]
[1725286866954,0.05269205,130.67,130.65,36.80451258]
[1725286867161,0.05269205,130.67,130.66,36.75]
[1725286867459,0.05269205,130.67,130.66,40.5769]
[1725286870759,3.8248,130.73,130.66,36.75]
[1725286870960,4.1875,130.76,130.66,36.75]
[1725286871267,3.8253,130.72,130.69,3.826]
[1725286871469,40.9375,130.76,130.66,36.75]
[1725286871767,0.04919687,130.72,130.7,0.05627068]
[1725286872062,0.04919687,130.72,130.7,36.80627068]
[1725286872360,0.04919687,130.72,130.7,0.05627068]
[1725286872563,0.04919687,130.72,130.7,3.88187068]
[1725286874170,3.8254,130.71,130.7,0.05627068]
[1725286877569,0.04919687,130.72,130.7,0.05627068]
[1725286878283,3.8254,130.71,130.7,0.05627068]
[1725286879177,7.62226013,130.71,130.7,0.05627068]
[1725286879783,3.79686013,130.71,130.65,40.577]
[1725286880080,36.75,130.72,130.65,3.827]
[1725286880278,1.3729,130.71,130.65,3.827]
[1725286880479,3.73526254,130.7,130.65,3.827]
[1725286880871,0.0545817,130.69,130.66,0.0489904]
[1725286881575,3.8265,130.68,130.66,0.0489904]
[1725286881772,0.0545817,130.69,130.66,0.0489904]
[1725286881973,0.0545817,130.69,130.67,3.8265]
[1725286882773,0.0545817,130.69,130.66,0.0489904]
[1725286882975,0.0545817,130.69,130.68,3.8263]
[1725286883577,0.0545817,130.69,130.67,3.8264]
[1725286883775,0.0545817,130.69,130.66,29.4189904]
[1725286884279,0.0545817,130.69,130.66,0.0489904]
[1725286884678,3.8266,130.67,130.66,0.0489904]
[1725286885979,3.8266,130.68,130.66,0.0489904]
[1725286887079,1.4650817,130.69,130.66,0.0489904]
[1725286887479,0.0545817,130.69,130.66,0.0489904]
[1725286888075,0.0545817,130.69,130.66,3.8756904]
[1725286888275,0.0545817,130.69,130.66,0.0489904]
[1725286888479,0.0545817,130.69,130.66,36.7689904]
[1725286888882,0.0545817,130.69,130.68,3.8263]
[1725286889787,0.0545817,130.69,130.66,36.7689904]
[1725286889788,0.0545817,130.69,130.66,40.5956904]
[1725286889980,0.0545817,130.69,130.66,36.7689904]
[1725286891294,0.0545817,130.69,130.68,3.8263]
[1725286894286,0.0545817,130.69,130.66,36.7689904]
[1725286894786,0.0545817,130.69,130.68,3.8263]
[1725286894990,1.3928,130.76,130.65,1.3653]
[1725286895192,1.3453,130.77,130.69,36.72]
[1725286895384,2.7381,130.77,130.69,36.72]
[1725286895790,2.7381,130.77,130.71,3.8252]
[1725286895989,0.05536311,130.75,130.73,0.05150869]
[1725286897291,3.87976311,130.75,130.73,0.05150869]
[1725286900299,3.8245,130.74,130.73,0.05150869]
[1725286900598,0.05536311,130.75,130.73,0.05150869]
[1725286900896,2.7542,130.82,130.73,36.77150869]
[1725286901095,4.1987,130.82,130.73,36.77150869]
[1725286901294,7.92937745,130.82,130.73,36.72]
[1725286901499,36.72,130.81,130.71,38.1268]
[1725286901897,3.8239,130.76,130.75,0.05155231]
[1725286902098,36.72,130.79,130.69,36.72]
[1725286902399,38.1774,130.76,130.69,3.826]
[1725286902601,38.1774,130.76,130.66,189.72]
[1725286902797,1.3613,130.75,130.66,189.72]
[1725286902997,0.05287804,130.72,130.69,3.880899]
[1725286905605,3.87797804,130.72,130.69,3.880899]
[1725286909214,3.8255,130.71,130.69,3.880899]
[1725286909611,3.87817804,130.72,130.69,3.880899]
[1725286910219,3.87817804,130.72,130.7,3.8257]
[1725286910415,0.05287804,130.72,130.7,3.8257]
[1725286910614,0.05287804,130.72,130.7,7.70775266]
[1725286911309,0.05287804,130.72,130.71,3.8254]
[1725286911514,0.05287804,130.72,130.71,33.2254]
[1725286912718,0.05287804,130.72,130.71,3.8254]
[1725286913318,0.05287804,130.72,130.69,0.054999]
[1725286913816,3.8257,130.7,130.69,0.054999]
[1725286914023,0.05287804,130.72,130.69,0.054999]
[1725286914715,3.87817804,130.72,130.69,3.880899]
[1725286914919,3.87817804,130.72,130.69,0.054999]
[1725286915114,0.05287804,130.72,130.69,0.054999]
[1725286915621,3.8254,130.71,130.69,0.054999]
[1725286916418,3.87817804,130.72,130.69,0.054999]
[1725286917111,0.05287804,130.72,130.69,0.054999]
[1725286917313,0.05287804,130.72,130.71,29.4]
[1725286917919,0.05287804,130.72,130.71,37.05466642]
[1725286919629,0.05287804,130.72,130.71,3.8254]
[1725286920125,0.05287804,130.72,130.69,0.054999]
[1725286920719,0.05287804,130.72,130.7,3.8255]
[1725286921121,0.05287804,130.72,130.71,3.91876386]
[1725286921324,0.05287804,130.72,130.69,0.054999]
[1725286921827,0.05287804,130.72,130.71,3.8254]
[1725286922015,0.05287804,130.72,130.69,0.054999]
[1725286923223,0.05287804,130.72,130.7,3.8255]
[1725286924423,0.05287804,130.72,130.71,3.8254]
[1725286927233,0.05287804,130.72,130.7,3.8256]
[1725286927429,0.05287804,130.72,130.69,0.054999]
[1725286927928,3.87817804,130.72,130.69,3.880799]
[1725286928632,0.05287804,130.72,130.7,3.86951648]
[1725286928933,3.8257,130.7,130.69,0.054999]
[1725286929134,0.05287804,130.72,130.69,0.054999]
[1725286929628,3.87817804,130.72,130.69,0.054999]
[1725286930733,0.05287804,130.72,130.69,0.054999]
[1725286931125,0.05287804,130.72,130.63,40.50281953]
[1725286931433,36.74,130.71,130.63,3.88158457]
[1725286931626,2.7767,130.7,130.63,3.88158457]
[1725286931828,36.74,130.69,130.61,36.74]
[1725286932329,3.87604265,130.66,130.64,0.05692323]
[1725286933031,7.78746496,130.66,130.64,0.05692323]
[1725286933231,3.8272,130.65,130.64,0.05692323]
[1725286934629,3.8272,130.65,130.61,3.8283]
[1725286934630,3.8276,130.64,130.59,36.74]
[1725286934826,3.8997321,130.66,130.6,3.8284]
[1725286935034,36.74,130.67,130.59,36.74]
[1725286935239,36.74,130.67,130.57,1.425]
[1725286935240,40.60796785,130.67,130.57,38.165]
[1725286935430,40.60796785,130.67,130.58,3.8291]
[1725286935939,3.8282,130.62,130.61,0.05688682]
[1725286936437,3.8279,130.63,130.61,0.05688682]
[1725286937832,3.8825962,130.64,130.61,0.05688682]
[1725286938438,3.8825962,130.64,130.61,3.88508682]
[1725286939631,0.0549962,130.64,130.61,0.05688682]
[1725286940042,0.0549962,130.64,130.61,29.43688682]
[1725286940234,0.0549962,130.64,130.62,3.8279]
[1725286940835,3.8824962,130.64,130.61,33.26508682]
[1725286941639,0.0549962,130.64,130.61,29.43688682]
[1725286942235,0.0549962,130.64,130.61,0.05688682]
[1725286942740,3.8277,130.63,130.61,0.05688682]
[1725286943541,3.828,130.62,130.61,0.05688682]
[1725286944537,3.8279,130.63,130.61,0.05688682]
[1725286944833,0.0549962,130.64,130.61,0.05688682]
[1725286945227,3.828,130.62,130.61,0.05688682]
[1725286946329,3.8279,130.63,130.61,0.05688682]
[1725286947148,0.0549962,130.64,130.61,0.05688682]
[1725286947639,3.8288,130.6,130.56,36.95461905]
[1725286948137,3.8288,130.6,130.56,33.12511905]
[1725286948338,3.8288,130.6,130.56,29.38]
[1725286948538,0.05007057,130.59,130.57,3.8624121]
[1725286949546,0.05007057,130.59,130.58,33.2092]
[1725286958362,1.459,130.65,130.61,3.8282]
[1725286958560,5.20487642,130.65,130.61,3.8282]
[1725286958756,5.2863,130.65,130.62,3.8279]
[1725286958959,1.459,130.65,130.62,3.8279]
[1725286959257,3.8276,130.64,130.61,3.8282]
[1725286959460,3.8276,130.64,130.62,0.05179963]
[1725286959655,1.50757164,130.65,130.62,0.05179963]
[1725286959861,3.8275,130.64,130.62,0.05179963]
[1725286960451,3.8277,130.63,130.62,0.05179963]
[1725286961355,3.8277,130.64,130.62,0.05179963]
[1725286962660,3.8277,130.63,130.62,0.05179963]
[1725286962959,1.50757164,130.65,130.62,0.05179963]
[1725286963158,1.50757164,130.65,130.62,3.87979963]
[1725286963353,5.33477164,130.65,130.62,3.87979963]
[1725286964859,3.8275,130.64,130.62,3.87979963]
[1725286966169,5.33487164,130.65,130.62,3.87979963]
[1725286968058,3.87587164,130.65,130.62,3.87979963]
[1725286968263,0.04857164,130.65,130.64,3.8275]
[1725286968462,0.04857164,130.65,130.64,33.2075]
[1725286973271,1.4651,130.73,130.67,29.38]
[1725286973571,5.27163554,130.73,130.67,29.38]
[1725286973770,6.61303554,130.73,130.67,29.38]
[1725286973967,6.61303554,130.73,130.67,33.12378204]
[1725286974268,0.05833078,130.71,130.69,3.88018387]
[1725286974867,3.88383078,130.71,130.69,0.05438387]
[1725286976667,0.05833078,130.71,130.69,3.88028387]
[1725286976869,0.05833078,130.71,130.69,0.05438387]
[1725286977260,0.05833078,130.71,130.7,3.8257]
[1725286979273,0.05833078,130.71,130.69,0.05438387]
[1725286979968,0.05833078,130.71,130.69,3.88008387]
[1725286980169,0.05833078,130.71,130.69,0.05438387]
[1725286980677,0.05833078,130.71,130.69,3.88028387]
[1725286981270,0.05833078,130.71,130.69,0.05438387]
[1725286981769,3.8257,130.7,130.69,0.05438387]
[1725286983375,3.8266,130.68,130.64,29.38]
[1725286983569,3.8266,130.68,130.63,33.16920826]
[1725286983771,3.8266,130.68,130.63,29.38]
[1725286984269,3.8266,130.68,130.65,3.8271]
[1725286984474,3.87834233,130.68,130.65,3.87673102]
[1725286984671,0.05174233,130.68,130.65,0.04963102]
[1725286984873,0.05174233,130.68,130.67,3.8266]
[1725286988870,3.8268,130.67,130.65,0.04963102]
[1725286989974,3.8269,130.66,130.65,0.04963102]
[1725286990172,3.93850591,130.68,130.65,0.04963102]
[1725286990372,0.05174233,130.68,130.65,0.04963102]
[1725286990781,3.8267,130.67,130.65,0.04963102]
[1725286991983,0.05174233,130.68,130.65,0.04963102]
[1725286992979,0.05174233,130.68,130.66,3.8267]
[1725286994383,3.87804233,130.68,130.65,3.87663102]
[1725286994579,0.05174233,130.68,130.65,0.04963102]
[1725286994885,3.87814233,130.68,130.66,3.8268]
[1725286995273,0.05174233,130.68,130.66,3.8268]
[1725286996688,0.05174233,130.68,130.66,29.38]
[1725286996879,2.7593,130.74,130.7,29.38]
[1725286997389,6.5836,130.74,130.71,3.825]
[1725286997776,6.63664023,130.74,130.71,3.87990481]
[1725286998992,2.81234023,130.74,130.71,0.05490481]
[1725286999288,1.41164023,130.74,130.71,0.05490481]
[1725286999487,5.23594023,130.74,130.71,3.87990481]
[1725287000087,3.87734023,130.74,130.71,3.87990481]
[1725287000385,0.05304023,130.74,130.72,3.8245]
[1725287002795,0.05304023,130.74,130.73,3.8244]
[1725287003109,0.05304023,130.74,130.73,7.73122374]
[1725287003302,0.05304023,130.74,130.73,3.8244]
[1725287003805,0.05304023,130.74,130.71,29.43490481]
[1725287004098,0.05304023,130.74,130.72,3.86436658]
[1725287004504,0.05304023,130.74,130.73,3.8244]
[1725287004906,0.05304023,130.74,130.73,37.09770783]
[1725287005105,0.05304023,130.74,130.73,33.2044]